bitfinex-derivatives/quotes_SOLF0:USTF0_20250625
["timestamp","ask_amount","ask_price","bid_price","bid_amount"]
[1750833707467,34.34,146.3,146.28,6.8327]
[1750833715887,34.34,146.3,146.27,6.8333]
[1750833716187,34.34,146.3,146.24,3.36116737]
[1750833716584,6.8327,146.29,146.26,6.8336]
[1750833717193,3.36116737,146.29,146.26,6.8336]
[1750833717695,6.8332,146.28,146.25,6.8343]
[1750833720689,6.8332,146.28,146.22,2.2854]
[1750833720690,34.34,146.3,146.24,6.8348]
[1750833720886,3.36116737,146.28,146.24,6.8348]
[1750833721291,6.8341,146.26,146.23,6.8352]
[1750833721692,41.1741,146.26,146.23,6.8352]
[1750833722796,6.8346,146.25,146.23,6.8352]
[1750833722995,37.70116737,146.26,146.23,6.8352]
[1750833723396,44.53536737,146.26,146.23,6.8352]
[1750833723990,37.70116737,146.26,146.24,6.8349]
[1750833727995,34.34,146.26,146.24,6.8349]
[1750833732004,41.1741,146.26,146.23,6.8352]
[1750833732302,34.34,146.26,146.2,46.14397627]
[1750833733008,34.34,146.26,146.24,6.8346]
[1750833733703,34.34,146.26,146.25,6.8345]
[1750833733904,34.34,146.26,146.21,8.4228089]
[1750833734302,36.49367387,146.26,146.24,6.8346]
[1750833736606,2.15367387,146.25,146.24,6.8346]
[1750833738612,2.15367387,146.25,146.23,6.8353]
[1750833740717,2.15367387,146.24,146.22,6.8357]
[1750833740914,2.15367387,146.23,146.22,6.8357]
[1750833741116,2.15367387,146.24,146.22,6.8357]
[1750833742718,6.8348,146.25,146.22,6.8357]
[1750833742719,2.15367387,146.23,146.22,6.8357]
[1750833744313,2.15367387,146.23,146.2,6.8368]
[1750833744513,2.15367387,146.22,146.2,6.8368]
[1750833744717,2.15367387,146.22,146.19,8.4228089]
[1750833745223,2.15367387,146.22,146.21,6.8364]
[1750833746517,2.15367387,146.23,146.21,6.8364]
[1750833750123,2.15367387,146.23,146.22,6.8359]
[1750833755722,2.15367387,146.23,146.21,6.8363]
[1750833755723,8.98907387,146.23,146.21,6.8363]
[1750833755923,2.15367387,146.22,146.21,6.8363]
[1750833759319,2.15367387,146.22,146.2,6.8366]
[1750833759516,2.15367387,146.21,146.2,6.8366]
[1750833761030,2.15367387,146.22,146.21,6.8363]
[1750833762927,2.15367387,146.22,146.2,6.8366]
[1750833763129,2.15367387,146.21,146.2,6.8366]
[1750833765829,2.15367387,146.22,146.2,6.8366]
[1750833766524,2.15367387,146.22,146.21,6.8364]
[1750833767335,34.34,146.26,146.2,2.15367387]
[1750833767523,2.15367387,146.24,146.2,2.15367387]
[1750833767930,2.15367387,146.24,146.23,6.8354]
[1750833768131,2.15367387,146.25,146.23,6.8354]
[1750833768519,2.15367387,146.25,146.24,6.835]
[1750833769132,41.1742,146.26,146.24,6.835]
[1750833769434,2.15367387,146.25,146.24,6.835]
[1750833770035,2.15367387,146.25,146.23,6.8352]
[1750833770532,8.98877387,146.24,146.21,6.8361]
[1750833770832,2.15367387,146.23,146.21,6.8361]
[1750833772033,6.8351,146.24,146.21,6.8361]
[1750833772234,2.15367387,146.23,146.21,6.8361]
[1750833774944,8.98877387,146.24,146.21,6.8361]
[1750833776042,6.8355,146.23,146.21,6.8361]
[1750833776940,8.98887387,146.24,146.21,6.8361]
[1750833777941,2.15367387,146.23,146.21,6.8361]
[1750833780944,6.8347,146.25,146.22,6.8359]
[1750833781143,2.15367387,146.23,146.22,6.8359]
[1750833783234,2.15367387,146.23,146.21,6.8362]
[1750833783440,2.15367387,146.22,146.18,10.57648277]
[1750833783946,2.15367387,146.21,146.19,6.837]
[1750833784644,2.15367387,146.2,146.19,6.837]
[1750833786745,34.26,146.22,146.19,2.15367387]
[1750833787449,34.26,146.22,146.21,6.8364]
[1750833791451,43.24967387,146.22,146.17,13.1454089]
[1750833791643,43.24967387,146.22,146.18,2.15367387]
[1750833792045,43.24967387,146.22,146.17,15.29908277]
[1750833792546,43.24967387,146.22,146.19,6.8371]
[1750833798654,43.25089445,146.22,146.19,6.8371]
[1750833802562,43.25089445,146.22,146.2,6.8368]
[1750833802859,34.26,146.22,146.19,2.15489445]
[1750833803059,34.26,146.22,146.2,6.8366]
[1750833803750,36.41489445,146.22,146.2,6.8366]
[1750833805162,43.25089445,146.22,146.2,6.8366]
[1750833807661,2.15489445,146.21,146.2,6.8366]
[1750833808470,43.25089445,146.22,146.2,6.8366]
[1750833808961,34.26,146.22,146.21,6.8364]
[1750833809466,2.15489445,146.23,146.21,6.8364]
[1750833810166,8.99049445,146.23,146.21,6.8364]
[1750833814668,2.15489445,146.22,146.21,6.8364]
[1750833817071,34.22,146.24,146.22,6.8355]
[1750833817270,36.37489445,146.24,146.22,6.8355]
[1750833817773,36.37489445,146.24,146.21,6.8361]
[1750833818273,43.20989445,146.24,146.21,6.8361]
[1750833819677,2.15444499,146.23,146.21,6.8361]
[1750833820276,2.15444499,146.23,146.22,6.8359]
[1750833821473,2.15444499,146.23,146.21,6.8361]
[1750833823280,2.15444499,146.22,146.2,6.8368]
[1750833823580,6.8359,146.23,146.2,6.8368]
[1750833823581,2.15444499,146.21,146.2,6.8368]
[1750833825070,2.15444499,146.22,146.2,6.8368]
[1750833825369,2.15444499,146.22,146.21,6.8364]
[1750833827881,41.0552,146.24,146.22,6.8356]
[1750833827882,36.37444499,146.24,146.22,6.8356]
[1750833832886,34.22,146.24,146.19,8.4228089]
[1750833833083,2.15444499,146.23,146.18,10.57725389]
[1750833833383,2.154719,146.23,146.18,10.5775279]
[1750833833787,2.154719,146.23,146.21,6.8363]
[1750833833981,2.154719,146.23,146.18,10.5775279]
[1750833834287,2.15470355,146.22,146.18,8.4228089]
[1750833834490,8.99070355,146.22,146.19,6.8372]
[1750833834685,8.99070355,146.22,146.17,10.57751245]
[1750833835487,8.99070355,146.22,146.2,6.8368]
[1750833835488,2.15470355,146.22,146.2,6.8368]
[1750833836889,2.15470355,146.21,146.2,6.8368]
[1750833838785,2.15470355,146.22,146.21,6.8364]
[1750833838987,2.15470355,146.23,146.19,2.15470355]
[1750833839187,2.15470355,146.23,146.19,10.57751245]
[1750833839589,2.15470355,146.23,146.19,2.15470355]
[1750833840188,8.99020355,146.23,146.2,6.8366]
[1750833845294,8.99020355,146.23,146.21,6.8363]
[1750833845680,13.5265,146.29,146.22,2.15343796]
[1750833845681,36.27343796,146.27,146.22,2.15343796]
[1750833846096,36.27343796,146.27,146.23,6.835]
[1750833846294,2.15343796,146.26,146.22,2.15343796]
[1750833846887,2.15354704,146.26,146.24,6.8347]
[1750833847495,34.12,146.27,146.25,6.8345]
[1750833847795,34.12,146.27,146.25,2.15354704]
[1750833848488,34.12,146.27,146.26,6.834]
[1750833848889,633.68594704,146.3,146.26,2.15354704]
[1750833849089,34.12,146.3,146.27,2.15354704]
[1750833849596,34.12,146.3,146.29,6.8326]
[1750833849791,36.27354704,146.3,146.24,8.4228089]
[1750833850091,36.27354704,146.3,146.26,2.15354704]
[1750833850297,36.27354704,146.3,146.24,8.4228089]
[1750833850298,34.12,146.3,146.28,6.833]
[1750833851100,34.12,146.3,146.29,6.8326]
[1750833871607,6.831,146.33,146.31,6.8317]
[1750833871608,34.1,146.33,146.31,6.8317]
[1750833871807,34.1,146.33,146.3,2.15193372]
[1750833873311,34.1,146.33,146.32,6.8312]
[1750833877816,2.15193372,146.35,146.31,2.15193372]
[1750833878308,2.15193372,146.35,146.34,6.8303]
[1750833880107,36.19193372,146.36,146.34,6.8303]
[1750833880606,43.02133372,146.36,146.33,6.8306]
[1750833881015,2.15193372,146.35,146.33,6.8306]
[1750833881417,34.04,146.36,146.34,6.8303]
[1750833881620,36.19193372,146.36,146.32,2.15193372]
[1750833881819,34.04,146.36,146.33,2.15193372]
[1750833882015,34.04,146.36,146.34,6.8303]
[1750833883119,36.19193372,146.36,146.34,6.8303]
[1750833883416,43.02133372,146.36,146.33,6.8305]
[1750833883605,36.19193372,146.36,146.32,2.15193372]
[1750833883805,36.19193372,146.36,146.33,6.8303]
[1750833884109,2.15193372,146.35,146.33,6.8303]
[1750833884307,34.04,146.36,146.33,6.8303]
[1750833884611,2.15193372,146.35,146.34,6.8302]
[1750833884820,34.04,146.36,146.32,2.15193372]
[1750833885021,34.04,146.36,146.34,6.8299]
[1750833887019,36.19193372,146.36,146.34,6.8299]
[1750833889721,43.02133372,146.36,146.33,6.8306]
[1750833889910,34.04,146.36,146.3,4.6941]
[1750833890115,36.19193372,146.36,146.32,2.15193372]
[1750833890820,36.19193372,146.36,146.34,6.8301]
[1750833892512,2.15193372,146.38,146.3,4.6941]
[1750833892721,2.15193372,146.38,146.34,2.15193372]
[1750833893320,8.98063372,146.38,146.35,6.8295]
[1750833893926,2.15193372,146.37,146.35,6.8295]
[1750833898428,8.98093372,146.37,146.34,6.8301]
[1750833901740,6.8286,146.38,146.35,6.8298]
[1750833901942,38.45993372,146.39,146.34,2.15193372]
[1750833902331,45.28803372,146.39,146.36,6.8291]
[1750833902529,2.15193372,146.38,146.36,6.8291]
[1750833902936,8.98043372,146.38,146.35,6.8297]
[1750833907445,2.15193372,146.37,146.35,6.8297]
[1750833908741,2.15193372,146.37,146.29,10.7790089]
[1750833908742,2.15193372,146.36,146.31,2.15193372]
[1750833908939,2.15193372,146.32,146.28,8.4228089]
[1750833909149,2.15193372,146.3,146.26,6.90973372]
[1750833910440,2.15193372,146.3,146.28,6.8329]
[1750833911252,2.15193372,146.3,146.29,6.8326]
[1750833911548,34.0,146.33,146.29,2.15193372]
[1750833911748,34.0,146.33,146.3,2.15193372]
[1750833914251,34.0,146.33,146.32,6.8312]
[1750833920454,37.36152146,146.36,146.33,6.8305]
[1750833920848,44.19102146,146.36,146.33,6.8305]
[1750833923347,37.36152146,146.36,146.28,42.4228089]
[1750833923552,37.36152146,146.36,146.28,45.78433036]
[1750833923948,37.36152146,146.36,146.28,42.4228089]
[1750833925159,6.8303,146.34,146.31,6.8314]
[1750833931565,10.19162146,146.35,146.32,6.8312]
[1750833932969,6.8303,146.34,146.32,6.8312]
[1750833933768,10.19162146,146.35,146.32,6.8312]
[1750833934366,2.15142872,146.34,146.32,6.8312]
[1750833934664,6.8301,146.35,146.32,6.8312]
[1750833934863,2.15142872,146.34,146.32,6.8312]
[1750833936168,8.98182872,146.34,146.31,6.8315]
[1750833936368,6.8304,146.34,146.31,6.8315]
[1750833936571,8.98182872,146.34,146.31,6.8315]
[1750833939872,6.8309,146.33,146.3,6.832]
[1750833940072,2.15142872,146.31,146.27,15.24623762]
[1750833940474,2.15142872,146.31,146.27,4.52952872]
[1750833940679,2.15142872,146.3,146.26,10.57423762]
[1750833941471,2.15142872,146.3,146.28,6.833]
[1750833943368,2.15142872,146.31,146.29,6.8326]
[1750833944174,42.94292872,146.32,146.29,6.8326]
[1750833951591,2.15142872,146.31,146.29,6.8326]
[1750833953900,2.15142872,146.3,146.28,6.8329]
[1750833959198,2.15142872,146.29,146.27,6.8334]
[1750833959399,33.96,146.32,146.25,10.57423762]
[1750833959699,2.15142872,146.31,146.28,6.8329]
[1750833960601,2.15142872,146.31,146.29,6.8326]
[1750833961306,36.11142872,146.32,146.28,2.15142872]
[1750833961807,33.96,146.32,146.3,6.8318]
[1750833963397,2.15142872,146.33,146.3,2.15142872]
[1750833963600,36.11142872,146.35,146.31,2.15142872]
[1750833964199,33.96,146.35,146.33,6.8304]
[1750833964398,36.11142872,146.35,146.33,6.8304]
[1750833965404,36.11142872,146.35,146.32,6.8311]
[1750833967809,36.11142872,146.35,146.33,6.8308]
[1750833969200,2.15142872,146.34,146.33,6.8308]
[1750833970504,2.15142872,146.34,146.32,6.831]
[1750833971910,2.15142872,146.33,146.28,8.4228089]
[1750833972111,33.96,146.35,146.27,8.4228089]
[1750833972112,2.15142872,146.3,146.27,8.4228089]
[1750833972810,2.15142872,146.3,146.28,6.8331]
[1750833974310,10.19472078,146.32,146.28,6.8331]
[1750833974500,33.94,146.31,146.28,6.8331]
[1750833976121,40.7719,146.31,146.28,6.8331]
[1750833978513,6.8322,146.3,146.27,6.8333]
[1750833978811,33.94,146.31,146.27,6.8333]
[1750833979202,6.8324,146.3,146.27,6.8333]
[1750833981908,10.19562078,146.3,146.27,6.8333]
[1750833982818,10.19562078,146.3,146.24,44.6636089]
[1750833982819,6.8327,146.29,146.26,6.8339]
[1750833983311,6.8327,146.29,146.25,6.8343]
[1750833983518,10.19652078,146.28,146.22,114.95708722]
[1750833983917,33.94,146.27,146.24,6.8347]
[1750833984418,33.94,146.27,146.22,114.95708722]
[1750833985015,33.94,146.27,146.22,118.320308]
[1750833985219,33.94,146.27,146.23,8.4228089]
[1750833986114,33.94,146.27,146.26,6.834]
[1750833992618,33.94,146.31,146.23,11.78602968]
[1750833993315,33.94,146.31,146.29,6.8324]
[1750833994126,33.94,146.31,146.3,6.8322]
[1750833994327,33.94,146.31,146.24,8.4228089]
[1750833994515,33.94,146.31,146.24,11.78602968]
[1750833995325,33.94,146.31,146.3,6.8322]
[1750833996720,33.94,146.31,146.29,6.8324]
[1750833996911,33.94,146.31,146.24,11.78602968]
[1750833997117,3.36322078,146.3,146.22,16.47992968]
[1750833997319,3.36322078,146.3,146.28,6.8328]
[1750833998225,3.36322078,146.3,146.27,6.8333]
[1750833998728,3.36322078,146.3,146.26,6.8338]
[1750833999319,10.19562078,146.3,146.26,6.8338]
[1750834000623,3.36322078,146.3,146.22,2.3462]
[1750834001219,6.8334,146.28,146.22,2.3462]
[1750834001420,33.92,146.27,146.22,2.3462]
[1750834002229,33.92,146.27,146.21,3.36322078]
[1750834002724,40.7536,146.27,146.21,3.36322078]
[1750834003227,40.7536,146.27,146.23,6.8351]
[1750834003430,6.8341,146.26,146.23,6.8351]
[1750834003829,40.7538,146.27,146.23,6.8351]
[1750834006532,6.8341,146.26,146.23,6.8351]
[1750834013638,40.7538,146.27,146.24,6.835]
[1750834013842,33.92,146.27,146.2,10.6306089]
[1750834014137,33.92,146.27,146.22,6.8356]
[1750834014738,3.36322078,146.26,146.21,6.8362]
[1750834014933,3.36322078,146.24,146.18,8.4228089]
[1750834015239,6.8362,146.22,146.18,6.8374]
[1750834015844,10.19942078,146.22,146.18,6.8374]
[1750834016346,2.15532574,146.2,146.18,6.8374]
[1750834018038,2.15532574,146.2,146.16,4.43212574]
[1750834018039,2.15532574,146.2,146.17,6.838]
[1750834018239,10.20449535,146.21,146.17,6.838]
[1750834018445,3.36789535,146.21,146.17,6.838]
[1750834018746,10.20449535,146.21,146.17,6.838]
[1750834020841,6.837,146.2,146.16,6.8385]
[1750834021143,37.30789535,146.19,146.14,8.4228089]
[1750834021340,3.36789535,146.17,146.11,8.4228089]
[1750834021538,33.94,146.16,146.13,6.8399]
[1750834022344,33.94,146.16,146.12,6.8403]
[1750834023248,6.8395,146.15,146.12,6.8403]
[1750834023547,33.94,146.16,146.08,45.73070425]
[1750834023548,33.94,146.16,146.08,37.30789535]
[1750834023852,33.94,146.16,146.08,45.73070425]
[1750834024244,33.94,146.16,146.13,6.8397]
[1750834024645,33.94,146.16,146.08,45.73070425]
[1750834025353,33.94,146.16,146.08,33.94]
[1750834025646,3.36789535,146.15,146.08,33.94]
[1750834026443,6.84,146.14,146.11,6.8408]
[1750834026950,10.20729535,146.15,146.12,6.8406]
[1750834028354,3.36789535,146.15,146.08,33.94]
[1750834029158,10.20739535,146.15,146.08,33.94]
[1750834029750,10.20739535,146.15,146.11,6.8408]
[1750834030048,10.20739535,146.15,146.08,33.94]
[1750834030248,33.94,146.16,146.09,3.36789535]
[1750834030451,33.94,146.16,146.11,3.36789535]
[1750834030750,33.94,146.2,146.13,3.36789535]
[1750834031054,33.94,146.2,146.13,37.30789535]
[1750834031249,40.7769,146.2,146.13,37.30789535]
[1750834031556,33.94,146.2,146.13,37.30789535]
[1750834032257,33.94,146.2,146.15,3.36789535]
[1750834032646,634.76339535,146.23,146.2,6.8366]
[1750834032959,634.76339535,146.23,146.15,3.36789535]
[1750834033255,634.76339535,146.23,146.19,6.837]
[1750834035456,634.76339535,146.23,146.2,6.8368]
[1750834036459,6.836,146.22,146.19,6.8371]
[1750834037047,634.76359535,146.23,146.19,6.8371]
[1750834038955,3.36789535,146.21,146.18,6.8376]
[1750834040260,3.36789535,146.19,146.13,33.94]
[1750834040459,37.28789535,146.19,146.13,33.94]
[1750834041163,37.28789535,146.19,146.1,42.3428089]
[1750834041359,37.28789535,146.19,146.1,37.28789535]
[1750834041660,3.36789535,146.17,146.1,37.28789535]
[1750834042062,3.36789535,146.17,146.09,15.4556089]
[1750834042262,3.36789535,146.17,146.09,40.9528]
[1750834042667,6.8389,146.16,146.09,40.9528]
[1750834042868,3.36789535,146.18,146.1,3.36789535]
[1750834043264,3.36789535,146.18,146.15,6.8388]
[1750834044265,3.36789535,146.18,146.1,3.36789535]
[1750834044969,3.36789535,146.18,146.16,6.8385]
[1750834045270,3.36789535,146.18,146.1,65.36789535]
[1750834045468,33.92,146.19,146.17,6.8379]
[1750834045863,33.92,146.19,146.12,3.36789535]
[1750834046768,33.92,146.19,146.18,6.8378]
[1750834064179,33.92,146.19,146.14,18.59210425]
[1750834064388,37.28789535,146.19,146.17,6.838]
[1750834064683,6.8379,146.18,146.13,8.4228089]
[1750834066192,6.8379,146.18,146.16,6.8387]
[1750834068591,6.8379,146.18,146.15,6.8392]
[1750834069793,44.12539535,146.19,146.16,6.8387]
[1750834072999,6.8378,146.18,146.13,8.4228089]
[1750834074393,6.8378,146.18,146.15,6.8388]
[1750834075894,44.12549535,146.19,146.16,6.8387]
[1750834077490,37.28789535,146.19,146.14,6.8393]
[1750834077799,3.36789535,146.17,146.11,8.4228089]
[1750834077992,6.839,146.16,146.11,8.4228089]
[1750834078589,6.8393,146.15,146.13,6.8399]
[1750834078789,37.31078489,146.15,146.1,8.4228089]
[1750834078992,37.31078489,146.15,146.11,6.8408]
[1750834079189,6.8401,146.14,146.11,6.8408]
[1750834079394,37.31078489,146.15,146.09,8.4228089]
[1750834079598,3.37078489,146.13,146.1,6.8414]
[1750834079900,3.37078489,146.13,146.08,8.4228089]
[1750834080400,3.37078489,146.13,146.11,6.8408]
[1750834080601,3.37178491,146.13,146.07,42.3628089]
[1750834080798,3.37178491,146.13,146.07,8.4228089]
[1750834081201,6.8406,146.12,146.09,6.8417]
[1750834083803,37.31178491,146.11,146.07,6.8427]
[1750834084298,6.8416,146.1,146.07,6.8427]
[1750834084602,37.31178491,146.11,146.06,6.8432]
[1750834085698,6.8417,146.1,146.07,6.8429]
[1750834086503,44.15308491,146.11,146.07,6.8429]
[1750834087003,37.31178491,146.11,146.08,6.8424]
[1750834087301,37.31178491,146.11,146.04,36.2689]
[1750834088496,33.94,146.11,146.05,3.37178491]
[1750834089307,33.94,146.11,146.09,6.8416]
[1750834090301,33.94,146.11,146.1,6.8415]
[1750834094300,33.94,146.11,146.05,3.37178491]
[1750834094509,3.37178491,146.09,146.04,2.3289]
[1750834094999,10.21378491,146.09,146.07,6.8429]
[1750834095200,3.37178491,146.09,146.07,6.8429]
[1750834096207,3.37178491,146.09,146.08,6.8425]
[1750834097606,3.37178491,146.09,146.07,6.8427]
[1750834097805,3.37178491,146.09,146.03,2.3039]
[1750834099201,3.37178491,146.09,146.08,6.8425]
[1750834099597,3.37178491,146.09,146.03,2.3039]
[1750834099800,37.31178491,146.11,146.03,5.67568491]
[1750834100012,37.31178491,146.11,146.03,11.97503214]
[1750834100304,37.31178491,146.11,146.03,8.60324723]
[1750834100609,37.31178491,146.11,146.03,5.67568491]
[1750834101410,6.8418,146.1,146.07,6.8427]
[1750834101613,3.37178491,146.09,146.03,2.3039]
[1750834102007,6.8425,146.08,146.06,6.8433]
[1750834102503,10.21398491,146.09,146.06,6.8433]
[1750834106619,3.37178491,146.09,146.07,6.8428]
[1750834107114,37.31178491,146.11,146.03,5.67568491]
[1750834107505,37.31178491,146.11,146.03,11.97503214]
[1750834107700,37.31178491,146.11,146.05,3.37178491]
[1750834107701,33.94,146.11,146.05,3.37178491]
[1750834108111,3.37178491,146.13,146.06,2.393]
[1750834108411,3.37178491,146.13,146.12,6.8406]
[1750834108615,3.37178491,146.13,146.06,4.7799]
[1750834109215,3.37178491,146.13,146.06,11.07924723]
[1750834109713,3.37178491,146.13,146.11,6.8409]
[1750834110306,3.37178491,146.13,146.12,6.8406]
[1750834111010,3.37178491,146.13,146.11,6.8409]
[1750834113913,33.94,146.14,146.07,3.37178491]
[1750834114122,3.37178491,146.17,146.09,3.37178491]
[1750834114417,37.31178491,146.17,146.11,3.37178491]
[1750834114612,44.15008491,146.17,146.14,6.8396]
[1750834118811,6.8388,146.16,146.09,5.79738491]
[1750834119016,3.37178491,146.15,146.09,2.4256]
[1750834120116,6.8398,146.14,146.11,6.8407]
[1750834121817,40.7802,146.13,146.1,6.8414]
[1750834122019,33.94,146.13,146.1,6.8414]
[1750834123213,40.7802,146.13,146.1,6.8414]
[1750834123415,37.31178491,146.13,146.09,6.8418]
[1750834123908,6.8407,146.12,146.09,6.8418]
[1750834124812,6.8407,146.12,146.1,6.8415]
[1750834125012,44.15218491,146.13,146.1,6.8415]
[1750834125218,33.94,146.13,146.07,3.37178491]
[1750834125421,33.94,146.13,146.07,11.79459381]
[1750834126223,33.94,146.13,146.12,6.8406]
[1750834128631,33.94,146.13,146.11,6.8409]
[1750834129334,33.94,146.13,146.12,6.8406]
[1750834138333,2.4081,146.19,146.11,3.37178491]
[1750834138629,33.96,146.18,146.11,3.37178491]
[1750834138828,33.96,146.18,146.15,6.8389]
[1750834138829,40.7979,146.18,146.15,6.8389]
[1750834139026,33.96,146.18,146.11,3.37178491]
[1750834139632,33.96,146.18,146.15,6.8389]
[1750834140724,33.96,146.18,146.14,6.8394]
[1750834141738,6.8383,146.17,146.14,6.8394]
[1750834141937,33.96,146.18,146.15,6.8392]
[1750834142731,40.798,146.18,146.15,6.8392]
[1750834143237,33.96,146.18,146.16,6.8387]
[1750834153437,40.7978,146.18,146.15,6.839]
[1750834154434,40.7978,146.18,146.11,16.35049381]
[1750834154639,33.96,146.18,146.16,6.8387]
[1750834162346,36.11605234,146.18,146.16,6.8387]
[1750834170854,42.95395234,146.18,146.15,6.839]
[1750834171053,2.15605234,146.16,146.15,6.839]
[1750834174864,2.15605234,146.16,146.13,6.8398]
[1750834175157,2.15605234,146.15,146.13,6.8398]
[1750834176957,2.15605234,146.14,146.13,6.8398]
[1750834180968,2.15605234,146.15,146.14,6.8393]
[1750834181565,2.15605234,146.16,146.14,6.8393]
[1750834183166,2.15605234,146.16,146.12,2.15605234]
[1750834183859,2.15605234,146.16,146.15,6.8392]
[1750834184563,33.96,146.18,146.16,6.8386]
[1750834184764,2.15605234,146.17,146.16,6.8386]
[1750834185270,2.15605234,146.17,146.15,6.839]
[1750834185471,2.15605234,146.16,146.11,10.57886124]
[1750834185767,33.96,146.18,146.14,6.8397]
[1750834185977,2.15605234,146.16,146.12,2.15605234]
[1750834186470,2.15605234,146.16,146.15,6.8392]
[1750834187863,33.96,146.18,146.15,6.8392]
[1750834187864,2.15605234,146.17,146.15,6.8392]
[1750834190569,36.11605234,146.18,146.14,2.15605234]
[1750834190769,33.96,146.18,146.14,2.15605234]
[1750834191068,33.96,146.18,146.17,6.8383]
[1750834194162,36.11605234,146.18,146.17,6.8383]
[1750834195975,42.95425234,146.18,146.15,6.839]
[1750834196277,2.15605234,146.16,146.15,6.839]
[1750834200068,40.7982,146.18,146.15,6.839]
[1750834200374,2.15605234,146.16,146.14,6.8394]
[1750834200579,2.15605234,146.15,146.14,6.8394]
[1750834202477,36.11605234,146.18,146.14,2.15605234]
[1750834203164,36.11605234,146.18,146.17,6.8383]
[1750834209980,36.11605234,146.18,146.15,6.8389]
[1750834210275,36.11605234,146.18,146.14,2.15605234]
[1750834210784,36.11605234,146.18,146.17,6.8383]
[1750834211783,36.11605234,146.18,146.16,6.8386]
[1750834211981,2.15605234,146.17,146.16,6.8386]
[1750834213278,2.15605234,146.17,146.15,6.839]
[1750834213480,2.15605234,146.16,146.15,6.839]
[1750834213978,2.15605234,146.17,146.15,6.839]
[1750834217080,8.99435234,146.17,146.14,6.8394]
[1750834218783,33.96,146.18,146.15,6.8392]
[1750834218784,2.15605234,146.16,146.15,6.8392]
[1750834221384,2.15605234,146.16,146.14,6.8393]
[1750834223281,2.15605234,146.15,146.14,6.8393]
[1750834223483,2.15605234,146.15,146.13,6.8399]
[1750834223681,2.15605234,146.14,146.11,8.43986464]
[1750834223886,2.15605234,146.12,146.1,107.83093687]
[1750834224389,2.15605234,146.12,146.1,116.2714856]
[1750834224790,2.15605234,146.12,146.11,6.8408]
[1750834225090,36.05605234,146.14,146.1,10.59660107]
[1750834225390,33.9,146.14,146.13,6.8401]
[1750834227093,36.05605234,146.14,146.13,6.8401]
[1750834228093,33.9,146.14,146.13,6.8401]
[1750834229393,33.9,146.17,146.1,3.37027164]
[1750834229594,40.7383,146.17,146.1,3.37027164]
[1750834230098,40.7383,146.17,146.14,6.8394]
[1750834231901,33.9,146.17,146.15,6.8392]
[1750834236904,33.9,146.17,146.16,6.8387]
[1750834237104,33.9,146.17,146.1,3.37027164]
[1750834237405,33.9,146.17,146.15,6.8388]
[1750834239101,33.9,146.17,146.16,6.8387]
[1750834243611,33.9,146.17,146.15,6.839]
[1750834248212,2.15634212,146.16,146.15,6.839]
[1750834249122,36.05634212,146.17,146.15,6.839]
[1750834254424,42.89464212,146.17,146.14,6.8394]
[1750834254624,2.15634212,146.16,146.12,8.43889422]
[1750834255424,2.15634212,146.16,146.14,6.8394]
[1750834256126,2.15634212,146.15,146.13,6.84]
[1750834256427,2.15634212,146.14,146.1,8.43889422]
[1750834256726,2.15634212,146.13,146.1,8.43889422]
[1750834256926,2.15634212,146.12,146.1,8.43889422]
[1750834257130,2.15634212,146.12,146.11,6.8407]
[1750834259429,36.03634212,146.13,146.11,6.8407]
[1750834260732,33.9,146.16,146.12,2.15634212]
[1750834260935,36.05634212,146.17,146.12,2.15634212]
[1750834261320,2.15634212,146.16,146.14,6.8392]
[1750834261636,2.15634212,146.15,146.11,2.15634212]
[1750834262325,33.9,146.17,146.11,2.15634212]
[1750834262524,2.15634212,146.15,146.14,6.8396]
[1750834263832,2.15634212,146.16,146.14,6.8396]
[1750834264035,2.15634212,146.16,146.15,6.8392]
[1750834264337,33.9,146.17,146.14,2.15634212]
[1750834264744,33.9,146.2,146.16,2.15634212]
[1750834265028,33.9,146.2,146.17,2.15634212]
[1750834266098,33.9,146.2,146.19,6.8373]